fUST/lending_fUST_20240225
["ID","MTS","AMOUNT","RATE_DAILY","PERIOD"]
[315061017,1708798245103,-500.0,0.00019452,2]
[315061018,1708798245113,-500.0,0.00019452,2]
[315061019,1708798245122,-500.89136528,0.00019452,2]
[315061020,1708798245131,-662.16,0.00019452,2]
[315061021,1708798245140,-1943.47,0.00019452,2]
[315061022,1708798245149,-500.0,0.00019452,2]
[315061023,1708798245159,-500.0,0.00019452,2]
[315061024,1708798245169,-500.0,0.00019452,2]
[315061026,1708798245177,-500.0,0.00019452,2]
[315061028,1708798245187,-714.47,0.00019452,2]
[315061030,1708798245195,-500.0,0.00019452,2]
[315061032,1708798245203,-500.0,0.00019452,2]
[315061033,1708798245213,-898.12,0.00019452,2]
[315061035,1708798245223,-500.0,0.00019452,2]
[315061036,1708798245233,-956.95,0.00019452,2]
[315061038,1708798245242,-500.0,0.00019452,2]
[315061039,1708798245252,-596.20651397,0.00019452,2]
[315061041,1708798245261,-6152.7,0.00019452,2]
[315061043,1708798245270,-500.0,0.00019452,2]
[315061044,1708798245279,-4184.08,0.00019452,2]
[315061046,1708798245288,-890.38,0.00019452,2]
[315061047,1708798245299,-500.0,0.00019452,2]
[315061048,1708798245308,-5551.08823382,0.00019461,2]
[315061049,1708798245318,-5551.08823382,0.00019465,2]
[315061050,1708798245327,-5551.08823382,0.00019465,2]
[315061051,1708798245336,-2269.87,0.00019469,2]
[315061052,1708798245345,-1206.44,0.00019469,2]
[315061053,1708798245354,-185.54660767,0.00019477,2]
[315061054,1708798245363,-185.54660767,0.00019478,2]
[315061055,1708798245373,-675.71646787,0.00019489,2]
[315061056,1708798245382,-185.54660767,0.0001949,2]
[315061057,1708798245391,-2000.0,0.000195,2]
[315061058,1708798245401,-675.71646787,0.00019626,2]
[315061059,1708798245410,-2299.94054983,0.00019626,2]
[315061060,1708798245420,-166.666666,0.00019627,2]
[315061061,1708798245429,-4187.66305356,0.000197,2]
[315061062,1708798245439,-4187.66305356,0.000197,2]
[315061063,1708798245448,-4187.66305356,0.000197,2]
[315061064,1708798245458,-853.24,0.00019725,2]
[315061065,1708798245467,-853.24,0.00019725,2]
[315061066,1708798245477,-500.0,0.00019726,2]
[315061067,1708798245486,-500.0,0.00019726,2]
[315061068,1708798245496,-544.48,0.00019726,2]
[315061069,1708798245508,-500.0,0.00019726,2]
[315061070,1708798245517,-500.0,0.00019726,2]
[315061071,1708798245527,-500.0,0.00019726,2]
[315061072,1708798245536,-202.51176436,0.00019726,2]
[315061073,1708798245547,-500.0,0.00019726,2]
[315061074,1708798245557,-215.67076236,0.00019726,2]
[315061075,1708798245567,-500.0,0.00019726,2]
[315061076,1708798245577,-500.0,0.00019726,2]
[315061077,1708798245587,-460.0,0.00019726,2]
[315061078,1708798245597,-500.0,0.00019726,2]
[315061079,1708798245607,-500.0,0.00019726,2]
[315061080,1708798245616,-500.0,0.00019726,2]
[315061081,1708798245626,-500.0,0.00019726,2]
[315061082,1708798245636,-500.0,0.00019726,2]
[315061083,1708798245646,-500.0,0.00019726,2]
[315061084,1708798245656,-500.0,0.00019726,2]
[315061085,1708798245666,-500.0,0.00019726,2]
[315061086,1708798245676,-1271.76,0.00019726,2]
[315061087,1708798245685,-500.0,0.00019726,2]
[315061088,1708798245695,-244.57,0.00019726,2]
[315061089,1708798245704,-500.0,0.00019726,2]
[315061090,1708798245714,-335.07009229,0.00019726,2]
[315061091,1708798245723,-679.68,0.00019726,2]
[315061092,1708798245732,-500.0,0.00019726,2]
[315061093,1708798245741,-500.0,0.00019726,2]
[315061094,1708798245751,-500.0,0.00019726,2]
[315061095,1708798245760,-500.0,0.00019726,2]
[315061096,1708798245770,-500.0,0.00019726,2]
[315061097,1708798245779,-644.85,0.00019726,2]
[315061098,1708798245788,-500.0,0.00019726,2]
[315061099,1708798245799,-542.60392477,0.00019726,2]
[315061100,1708798245808,-500.0,0.00019726,2]
[315061101,1708798245816,-562.0,0.00019726,2]
[315061102,1708798245825,-501.36810691,0.00019726,2]
[315061103,1708798245834,-559.40281713,0.00019726,2]
[315061104,1708798245844,-500.0,0.00019726,2]
[315061105,1708798245853,-500.0,0.00019726,2]
[315061106,1708798245862,-500.0,0.00019726,2]
[315061107,1708798245871,-6632.55,0.00019726,2]
[315061108,1708798245880,-500.0,0.00019726,2]
[315061109,1708798245889,-1258.49,0.00019726,2]
[315061110,1708798245899,-814.34,0.00019726,2]
[315061111,1708798245908,-500.0,0.00019726,2]
[315061112,1708798245917,-175.12754815,0.00019726,2]
[315061113,1708798245926,-938.05,0.00019726,2]
[315061114,1708798245935,-500.0,0.00019726,2]
[315061115,1708798245944,-500.0,0.00019726,2]
[315061116,1708798245954,-500.0,0.00019726,2]
[315061117,1708798245963,-500.0,0.00019726,2]
[315061122,1708798246064,-1390.24,0.00019726,2]
[315061123,1708798246074,-1461.79,0.00019726,2]
[315061124,1708798246083,-866.39,0.00019726,2]
[315061125,1708798246093,-282.82142789,0.00019726,2]
[315061126,1708798246101,-501.62181897,0.00019726,2]
[315061127,1708798246110,-500.0,0.00019726,2]
[315061128,1708798246119,-807.42,0.00019726,2]
[315061129,1708798246128,-500.0,0.00019726,2]
[315061130,1708798246137,-500.0,0.00019726,2]
[315061131,1708798246147,-8526.92,0.00019726,2]
[315061132,1708798246156,-10674.85,0.00019726,2]
[315061133,1708798246166,-500.0,0.00019726,2]
[315061134,1708798246175,-500.0,0.00019726,2]
[315061135,1708798246185,-1729.64,0.00019726,2]
[315061136,1708798246195,-500.0,0.00019726,2]
[315061137,1708798246204,-500.0,0.00019726,2]
[315061138,1708798246213,-500.0,0.00019726,2]
[315061139,1708798246222,-1418.12,0.00019726,2]
[315061140,1708798246231,-887.98,0.00019726,2]
[315061141,1708798246241,-540.55,0.00019726,2]
[315061142,1708798246250,-518.85,0.00019726,2]
[315061144,1708798246259,-500.0,0.00019726,2]
[315061146,1708798246268,-1913.13,0.00019726,2]
[315061147,1708798246277,-500.0,0.00019726,2]
[315061148,1708798246286,-662.16,0.00019726,2]
[315061149,1708798246296,-1943.47,0.00019726,2]
[315061150,1708798246305,-424.34923764,0.00019726,2]
[315061151,1708798246315,-500.0,0.00019726,2]
[315061152,1708798246323,-500.0,0.00019726,2]
[315061153,1708798246332,-714.47,0.00019726,2]
[315061154,1708798246341,-500.0,0.00019726,2]
[315061155,1708798246351,-500.0,0.00019726,2]
[315061156,1708798246360,-898.12,0.00019726,2]
[315061157,1708798246370,-500.0,0.00019726,2]
[315061158,1708798246379,-956.95,0.00019726,2]
[315061159,1708798246388,-6152.7,0.00019726,2]
[315061160,1708798246397,-500.0,0.00019726,2]
[315061161,1708798246407,-4184.08,0.00019726,2]
[315061162,1708798246416,-890.38,0.00019726,2]
[315061163,1708798246426,-12703.34678594,0.00019732,2]
[315061164,1708798246435,-2269.87,0.00019743,2]
[315061165,1708798246444,-1206.44,0.00019743,2]
[315061166,1708798246453,-1000.0,0.000198,2]
[315061167,1708798246463,-7196.53815296,0.00019832,2]
[315061168,1708798246473,-7341.36186162,0.0001999,2]
[315061170,1708798246482,-853.24,0.00019999,2]
[315061172,1708798246492,-500.0,0.0002,2]
[315061173,1708798246507,-500.0,0.0002,2]
[315061174,1708798246516,-500.0,0.0002,2]
[315061175,1708798246525,-500.0,0.0002,2]
[315061176,1708798246535,-500.0,0.0002,2]
[315061177,1708798246546,-500.0,0.0002,2]
[315061178,1708798246556,-174.74393213,0.0002,2]
[315061179,1708798246566,-500.0,0.0002,2]
[315061180,1708798246576,-500.0,0.0002,2]
[315061181,1708798246585,-151.45456969,0.0002,2]
[315061182,1708798246597,-500.0,0.0002,2]
[315061183,1708798246607,-500.0,0.0002,2]
[315061184,1708798246617,-500.0,0.0002,2]
[315061185,1708798246627,-500.0,0.0002,2]
[315061186,1708798246636,-500.0,0.0002,2]
[315061187,1708798246645,-500.0,0.0002,2]
[315061188,1708798246654,-1271.76,0.0002,2]
[315061189,1708798246664,-500.0,0.0002,2]
[315061190,1708798246673,-679.68,0.0002,2]
[315061192,1708798246684,-500.0,0.0002,2]
[315061193,1708798246693,-500.0,0.0002,2]
[315061194,1708798246702,-501.9076383,0.0002,2]
[315061195,1708798246712,-500.0,0.0002,2]
[315061196,1708798246721,-500.0,0.0002,2]
[315061197,1708798246730,-644.85,0.0002,2]
[315061198,1708798246739,-500.0,0.0002,2]
[315061199,1708798246748,-562.0,0.0002,2]
[315061201,1708798246758,-500.0,0.0002,2]
[315061202,1708798246767,-157.56559089,0.0002,2]
[315061203,1708798246776,-500.0,0.0002,2]
[315061204,1708798246786,-6632.55,0.0002,2]
[315061205,1708798246796,-500.0,0.0002,2]
[315061206,1708798246805,-1258.49,0.0002,2]
[315061207,1708798246814,-814.34,0.0002,2]
[315061208,1708798246823,-500.0,0.0002,2]
[315061209,1708798246833,-938.05,0.0002,2]
[315061210,1708798246842,-500.0,0.0002,2]
[315061211,1708798246851,-500.0,0.0002,2]
[315061212,1708798246863,-426.40375798,0.0002,2]
[315061213,1708798246872,-987.0,0.0002,4]
[315061214,1708798246881,-1390.24,0.0002,2]
[315061215,1708798246890,-1461.79,0.0002,2]
[315061216,1708798246900,-866.39,0.0002,2]
[315061217,1708798246909,-541.0,0.0002,4]
[315061218,1708798246918,-500.0,0.0002,2]
[315061219,1708798246927,-807.42,0.0002,2]
[315061220,1708798246937,-500.0,0.0002,2]
[315061221,1708798246946,-500.0,0.0002,2]
[315061222,1708798246956,-8526.92,0.0002,2]
[315061223,1708798246966,-10674.85,0.0002,2]
[315061224,1708798246976,-500.0,0.0002,2]
[315061225,1708798246987,-500.0,0.0002,2]
[315061226,1708798246997,-1729.64,0.0002,2]
[315061227,1708798247007,-334.1222498,0.0002,2]
[315061228,1708798247016,-320.57,0.0002,2]
[315061229,1708798247026,-500.0,0.0002,2]
[315061230,1708798247035,-1418.12,0.0002,2]
[315061231,1708798247047,-792.64185061,0.0002,4]
[315061232,1708798247056,-887.98,0.0002,2]
[315061233,1708798247066,-540.55,0.0002,2]
[315061234,1708798247075,-518.85,0.0002,2]
[315061235,1708798247085,-500.0,0.0002,2]
[315061236,1708798247094,-1913.13,0.0002,2]
[315061237,1708798247104,-662.16,0.0002,2]
[315061238,1708798247113,-1943.47,0.0002,2]
[315061239,1708798247122,-500.0,0.0002,2]
[315061240,1708798247131,-500.0,0.0002,2]
[315061241,1708798247141,-714.47,0.0002,2]
[315061242,1708798247150,-500.0,0.0002,2]
[315061243,1708798247160,-500.0,0.0002,2]
[315061244,1708798247169,-898.12,0.0002,2]
[315061245,1708798247178,-502.18556509,0.0002,2]
[315061246,1708798247187,-956.95,0.0002,2]
[315061247,1708798247197,-6152.7,0.0002,2]
[315061248,1708798247206,-500.0,0.0002,2]
[315061249,1708798247215,-4184.08,0.0002,2]
[315061250,1708798247224,-890.38,0.0002,2]
[315061251,1708798247234,-2269.87,0.00020017,2]
[315061252,1708798247243,-1206.44,0.00020017,2]
[315061253,1708798247252,-85157.68629711,0.00020071,2]
[315061254,1708798247261,-166.666666,0.00020076,2]
[315061255,1708798247271,-50000.0,0.0002013,2]
[315061256,1708798247281,-70643.5589975,0.00020156,2]
[315061257,1708798247291,-853.24,0.00020163,2]
[315061258,1708798247304,-853.24,0.00020163,2]
[315061259,1708798247315,-853.24,0.00020178,2]
[315061260,1708798247325,-50000.0,0.00020189,2]
[315061261,1708798247335,-853.24,0.0002019,2]
[315061262,1708798247344,-853.24,0.0002019,2]
[315061263,1708798247354,-750.0,0.000202,2]
[315061264,1708798247364,-853.24,0.00020211,2]
[315061265,1708798247373,-853.24,0.00020211,2]
[315061266,1708798247383,-853.24,0.00020234,2]
[315061267,1708798247392,-853.24,0.00020234,2]
[315061268,1708798247401,-853.24,0.00020234,2]
[315061269,1708798247410,-853.24,0.00020234,2]
[315061270,1708798247421,-853.41359977,0.00020234,2]
[315061271,1708798247431,-50000.0,0.00020245,2]
[315061272,1708798247442,-50000.0,0.00020248,2]
[315061273,1708798247452,-503.95786474,0.00020273,2]
[315061274,1708798247461,-500.0,0.00020273,2]
[315061275,1708798247472,-500.0,0.00020273,2]
[315061276,1708798247482,-500.0,0.00020273,2]
[315061277,1708798247493,-500.0,0.00020273,2]
[315061278,1708798247510,-371.3298318,0.00020273,2]
[315061279,1708798247521,-500.0,0.00020273,2]
[315061280,1708798247530,-500.0,0.00020273,2]
[315061281,1708798247540,-630.45135169,0.00020273,2]
[315061282,1708798247554,-500.0,0.00020273,2]
[315061283,1708798247564,-500.0,0.00020273,2]
[315061284,1708798247573,-380.60345438,0.00020273,2]
[315061285,1708798247584,-1271.76,0.00020273,2]
[315061286,1708798247594,-500.0,0.00020273,2]
[315061287,1708798247604,-679.68,0.00020273,2]
[315061288,1708798247613,-500.0,0.00020273,2]
[315061289,1708798247623,-506.51,0.00020273,2]
[315061290,1708798247633,-500.0,0.00020273,2]
[315061291,1708798247642,-329.83424643,0.00020273,2]
[315061292,1708798247652,-644.85,0.00020273,2]
[315061293,1708798247661,-218.42275406,0.00020273,2]
[315061294,1708798247673,-562.0,0.00020273,2]
[315061295,1708798247682,-6632.55,0.00020273,2]
[315061296,1708798247692,-1258.49,0.00020273,2]
[315061297,1708798247701,-814.34,0.00020273,2]
[315061298,1708798247710,-500.0,0.00020273,2]
[315061299,1708798247719,-938.05,0.00020273,2]
[315061300,1708798247728,-377.92,0.00020273,2]
[315061301,1708798247738,-1390.24,0.00020273,2]
[315061302,1708798247747,-1461.79,0.00020273,2]
[315061303,1708798247756,-866.39,0.00020273,2]
[315061304,1708798247765,-500.0,0.00020273,2]
[315061305,1708798247774,-807.42,0.00020273,2]
[315061306,1708798247784,-500.0,0.00020273,2]
[315061307,1708798247793,-8526.92,0.00020273,2]
[315061308,1708798247804,-10674.85,0.00020273,2]
[315061309,1708798247814,-500.0,0.00020273,2]
[315061310,1708798247823,-1729.64,0.00020273,2]
[315061311,1708798247833,-307.42899316,0.00020273,2]
[315061312,1708798247842,-1418.12,0.00020273,2]
[315061313,1708798247851,-887.98,0.00020273,2]
[315061314,1708798247860,-540.55,0.00020273,2]
[315061315,1708798247869,-518.85,0.00020273,2]
[315061316,1708798247878,-500.0,0.00020273,2]
[315061317,1708798247888,-1913.13,0.00020273,2]
[315061318,1708798247897,-1943.47,0.00020273,2]
[315061319,1708798247906,-662.16,0.00020273,2]
[315061320,1708798247915,-596.53827503,0.00020273,2]
[315061321,1708798247924,-500.0,0.00020273,2]
[315061322,1708798247933,-714.47,0.00020273,2]
[315061323,1708798247943,-500.0,0.00020273,2]
[315061324,1708798247953,-898.12,0.00020273,2]
[315061325,1708798247962,-956.95,0.00020273,2]
[315061326,1708798247971,-6152.7,0.00020273,2]
[315061327,1708798247980,-500.0,0.00020273,2]
[315061328,1708798247989,-4184.08,0.00020273,2]
[315061329,1708798247999,-890.38,0.00020273,2]
[315061330,1708798248008,-2269.87,0.00020291,2]
[315061331,1708798248017,-1206.44,0.00020291,2]
[315061332,1708798248026,-200.0,0.000203,2]
[315061333,1708798248035,-50000.0,0.00020307,2]
[315061334,1708798248044,-151.0,0.00020307,2]
[315061335,1708798248054,-50000.0,0.00020335,2]
[315061336,1708798248063,-430.057369,0.00020335,2]
[315061337,1708798248072,-4221.193254,0.00020335,2]
[315061338,1708798248081,-430.057369,0.00020335,2]
[315061339,1708798248090,-4221.193254,0.00020335,2]
[315061340,1708798248099,-4379.044449,0.00020335,2]
[315061341,1708798248108,-4379.044449,0.00020335,2]
[315061342,1708798248116,-50000.0,0.00020366,2]
[315061343,1708798248125,-220.596274,0.00020366,2]
[315061344,1708798248134,-151.0,0.00020366,2]
[315061345,1708798248143,-500.0,0.00020424,2]
[315061346,1708798248152,-458.13166133,0.00020424,2]
[315061347,1708798248161,-22413.78864747,0.00020425,2]
[315061348,1708798248170,-50000.0,0.00020425,2]
[315061349,1708798248179,-17746.88341216,0.00020425,2]
[315061351,1708798249485,-281.345214,0.00019177,2]
[315061352,1708798249494,-10817.59066089,0.00019279,3]
[315061353,1708798249509,-808.8343163,0.00019279,3]
[315061354,1708798249520,-26590.64502281,0.00019279,3]
[315061355,1708798249529,-151.0,0.00020307,2]
[315061356,1708798249539,-300.93193627,0.00020334,2]
[315061357,1708798249549,-500.0,0.00020334,2]
[315061358,1708798249558,-500.0,0.00020334,2]
[315061359,1708798249567,-500.0,0.00020334,2]
[315061360,1708798249576,-500.0,0.00020334,2]
[315061361,1708798249586,-500.0,0.00020334,2]
[315061362,1708798249596,-500.0,0.00020334,2]
[315061363,1708798249605,-500.0,0.00020334,2]
[315061364,1708798249614,-274.27320398,0.00020334,2]
[315061365,1708798249624,-500.0,0.00020334,2]
[315061366,1708798249633,-500.0,0.00020334,2]
[315061367,1708798249643,-500.0,0.00020334,2]
[315061368,1708798249653,-500.0,0.00020334,2]
[315061369,1708798249662,-500.0,0.00020334,2]
[315061370,1708798249672,-500.0,0.00020334,2]
[315061371,1708798249681,-500.0,0.00020334,2]
[315061372,1708798249691,-500.0,0.00020334,2]
[315061373,1708798249701,-500.0,0.00020334,2]
[315061374,1708798249710,-500.0,0.00020334,2]
[315061375,1708798249719,-500.0,0.00020334,2]
[315061376,1708798249729,-500.0,0.00020334,2]
[315061377,1708798249738,-500.0,0.00020334,2]
[315061378,1708798249747,-500.0,0.00020334,2]
[315061379,1708798249756,-521.82210049,0.00020334,2]
[315061380,1708798249765,-500.0,0.00020334,2]
[315061381,1708798249774,-500.0,0.00020334,2]
[315061382,1708798249784,-10665.57809773,0.00020425,2]
[315061383,1708798249796,-950.0,0.00020425,2]
[315061384,1708798249844,-550.42417646,0.00020425,2]
[315061385,1708798249855,-1401.49993163,0.00020425,2]
[315061386,1708798249867,-1327.71205441,0.00020425,2]
[315061387,1708798249878,-17357.90232761,0.00020425,2]
[315061388,1708798249887,-34338.10193964,0.00020425,2]
[315061389,1708798249898,-292.0178731,0.00020425,2]
[315061390,1708798249909,-369.88018726,0.00020425,2]
[315061391,1708798249918,-35.93366907,0.00020425,2]
[315061392,1708798250025,-500.0,0.00019197,2]
[315061393,1708798250035,-500.0,0.00019197,2]
[315061394,1708798250044,-115.06633093,0.00020425,2]
[315061395,1708798250054,-151.0,0.00020425,2]
[315061396,1708798250063,-2299.94054974,0.0002046,2]
[315061397,1708798250073,-300.0,0.00020474,2]
[315061398,1708798250083,-166.666666,0.00020524,2]
[315061399,1708798250092,-760.62,0.00020538,3]
[315061400,1708798250102,-380.32,0.00020538,3]
[315061401,1708798250111,-159.687119,0.00020545,2]
[315061402,1708798250120,-190.832736,0.00020545,2]
[315061403,1708798250129,-165.207694,0.00020545,2]
[315061404,1708798250138,-193.483509,0.00020545,2]
[315061405,1708798250148,-211.741149,0.00020545,2]
[315061406,1708798250157,-500.0,0.00020547,2]
[315061407,1708798250167,-500.0,0.00020547,2]
[315061408,1708798250176,-500.0,0.00020547,2]
[315061409,1708798250186,-500.0,0.00020547,2]
[315061410,1708798250196,-500.0,0.00020547,2]
[315061411,1708798250205,-520.13908972,0.00020547,2]
[315061412,1708798250215,-500.0,0.00020547,2]
[315061413,1708798250224,-1271.76,0.00020547,2]
[315061414,1708798250233,-500.0,0.00020547,2]
[315061415,1708798250242,-679.68,0.00020547,2]
[315061416,1708798250252,-485.65562093,0.00020547,2]
[315061417,1708798250261,-500.0,0.00020547,2]
[315061418,1708798250270,-644.85,0.00020547,2]
[315061419,1708798250280,-562.0,0.00020547,2]
[315061420,1708798250288,-814.34,0.00020547,2]
[315061421,1708798250299,-234.50036591,0.00020547,2]
[315061422,1708798250311,-265.49963409,0.00020547,2]
[315061423,1708798250320,-938.05,0.00020547,2]
[315061424,1708798250330,-1390.24,0.00020547,2]
[315061425,1708798250339,-1461.79,0.00020547,2]
[315061426,1708798250348,-860.82929349,0.00020547,2]
[315061427,1708798250360,-5.56070651,0.00020547,2]
[315061428,1708798250369,-500.0,0.00020547,2]
[315061429,1708798250379,-51.67307712,0.00020547,2]
[315061430,1708798250391,-755.74692288,0.00020547,2]
[315061431,1708798250400,-500.0,0.00020547,2]
[315061432,1708798250506,-8526.92,0.00020547,2]
[315061433,1708798250522,-5406.53461389,0.00020547,2]
[315061436,1708798508113,152.37126184,2.5e-05,2]
[315061450,1708799100251,1694.00377331,0.00022,30]
[315061452,1708799117815,2429.4200661,0.00018177,2]
[315061453,1708799154156,-698.59764233,0.000189,2]
[315061454,1708799154177,-161.30669832,0.00019078,2]
[315061455,1708799154197,-292.96308166,0.00019176,2]
[315061456,1708799154217,-234.10191032,0.00019177,2]
[315061457,1708799154237,-517.57000004,0.00019178,2]
[315061458,1708799154258,-500.0,0.00019178,2]
[315061459,1708799154279,-500.0,0.00019178,2]
[315061460,1708799154299,-500.0,0.00019178,2]
[315061461,1708799154319,-581.88330222,0.00019178,2]
[315061462,1708799154337,-500.0,0.00019178,2]
[315061463,1708799154356,-614.65414153,0.00019178,2]
[315061464,1708799154376,-584.79063266,0.00019178,2]
[315061465,1708799154396,-108.56643983,0.00019178,2]
[315061466,1708799231117,-419.67069803,0.00019178,2]
[315061467,1708799231139,-500.0,0.00019178,2]
[315061468,1708799231159,-500.66481967,0.00019178,2]
[315061469,1708799231180,-500.0,0.00019178,2]
[315061470,1708799231202,-181.31327599,0.00019178,2]
[315061471,1708799231222,-500.0,0.00019178,2]
[315061472,1708799231242,-500.0,0.00019178,2]
[315061473,1708799231262,-500.0,0.00019178,2]
[315061474,1708799231282,-500.0,0.00019178,2]
[315061475,1708799231302,-500.0,0.00019178,2]
[315061476,1708799231322,-500.0,0.00019178,2]
[315061477,1708799231342,-500.90707381,0.00019178,2]
[315061478,1708799231362,-500.0,0.00019178,2]
[315061479,1708799231511,-500.0,0.00019178,2]
[315061480,1708799231533,-500.0,0.00019178,2]
[315061481,1708799231553,-532.14463366,0.00019178,2]
[315061482,1708799231573,-500.0,0.00019178,2]
[315061483,1708799231594,-533.28,0.00019178,2]
[315061484,1708799231613,-533.28,0.00019178,2]
[315061485,1708799231633,-500.63186668,0.00019178,2]
[315061486,1708799231653,-500.0,0.00019178,2]
[315061487,1708799231673,-500.0,0.00019178,2]
[315061488,1708799231694,-500.0,0.00019178,2]
[315061489,1708799231715,-500.0,0.00019178,2]
[315061490,1708799231737,-500.0,0.00019178,2]
[315061491,1708799231758,-794.19,0.00019178,2]
[315061492,1708799231778,-500.0,0.00019178,2]
[315061493,1708799231799,-500.0,0.00019178,2]
[315061494,1708799231821,-500.0,0.00019178,2]
[315061495,1708799231841,-501.3354814,0.00019178,2]
[315061496,1708799231865,-1657.57,0.00019178,2]
[315061497,1708799231886,-500.0,0.00019178,2]
[315061498,1708799231907,-850.99,0.00019178,2]
[315061499,1708799231927,-177.06876316,0.00019178,2]
[315061500,1708799231948,-500.0,0.00019178,2]
[315061501,1708799231968,-500.89136528,0.00019178,2]
[315061502,1708799231988,-1833.42,0.00019178,2]
[315061503,1708799232007,-500.0,0.00019178,2]
[315061504,1708799232027,-500.0,0.00019178,2]
[315061505,1708799232047,-518.03,0.00019178,2]
[315061506,1708799232066,-500.0,0.00019178,2]
[315061507,1708799232086,-500.0,0.00019178,2]
[315061508,1708799232106,-500.0,0.00019178,2]
[315061509,1708799232126,-500.0,0.00019178,2]
[315061510,1708799232146,-500.0,0.00019178,2]
[315061511,1708799232165,-500.0,0.00019178,2]
[315061512,1708799232186,-500.0,0.00019178,2]
[315061513,1708799232207,-500.0,0.00019178,2]
[315061514,1708799232227,-500.0,0.00019178,2]
[315061515,1708799232247,-500.0,0.00019178,2]
[315061516,1708799232270,-500.0,0.00019178,2]
[315061517,1708799232291,-650.08,0.00019178,2]
[315061518,1708799232311,-500.0,0.00019178,2]
[315061519,1708799232331,-500.0,0.00019178,2]
[315061520,1708799232351,-500.0,0.00019178,2]
[315061521,1708799232370,-500.0,0.00019178,2]
[315061522,1708799232390,-500.0,0.00019178,2]
[315061523,1708799232410,-642.3,0.00019178,2]
[315061524,1708799232431,-500.0,0.00019178,2]
[315061525,1708799232451,-500.0,0.00019178,2]
[315061526,1708799232471,-500.0,0.00019178,2]
[315061527,1708799232490,-500.0,0.00019178,2]
[315061528,1708799232510,-500.0,0.00019178,2]
[315061529,1708799232530,-500.0,0.00019178,2]
[315061530,1708799232550,-500.0,0.00019178,2]
[315061531,1708799232570,-515.17,0.00019178,2]
[315061532,1708799232589,-500.94649649,0.00019178,2]
[315061533,1708799232609,-500.0,0.00019178,2]
[315061534,1708799232630,-500.0,0.00019178,2]
[315061535,1708799232650,-500.0,0.00019178,2]
[315061536,1708799232671,-500.0,0.00019178,2]
[315061537,1708799232692,-500.0,0.00019178,2]
[315061538,1708799232716,-500.29977503,0.00019178,2]
[315061539,1708799232736,-500.35753757,0.00019178,2]
[315061540,1708799232756,-500.0,0.00019178,2]
[315061541,1708799232777,-500.39685081,0.00019178,2]
[315061542,1708799232799,-500.0,0.00019178,2]
[315061543,1708799232822,-500.0,0.00019178,2]
[315061544,1708799232843,-2175.3,0.00019178,2]
[315061545,1708799232863,-500.0,0.00019178,2]
[315061546,1708799232885,-380.71677429,0.00019178,2]
[315061547,1708799232906,-500.0,0.00019178,2]
[315061548,1708799232927,-500.0,0.00019178,2]
[315061549,1708799232949,-955.7,0.00019178,2]
[315061550,1708799232969,-500.0,0.00019178,2]
[315061551,1708799232989,-500.0,0.00019178,2]
[315061552,1708799233009,-500.0,0.00019178,2]